Cogmind - Beta 16.1 @@@ ROGUE MODE // 2026.05.03 @ 17:40:14 Player: Ren Result: Destroyed by 8O-8WH(R) with Subdweller Machine Gun Performance ------------- Evolutions (0) 0 Regions Visited (2) 400 Robots Destroyed (18) 90 Value Destroyed (188) 188 Prototype IDs (2) 40 Alien Tech Used (0) 0 Bonus (0) 0 TOTAL SCORE: 718 Bonus ------- None Cogmind --------- Core Integrity 0/250 Matter 295/300 Energy 100/100 System Corruption 0% Temperature Cool (0) Movement Rolling (100) Location -10/Subcaves Parts ------- > --- POWER (1) -------- (None) > --- PROPULSION (2) --- Compact Wheel Compact Wheel > --- UTILITY (2) ------ Small Storage Unit > --- WEAPON (2) ------- Mining Claw > --- INVENTORY (8) ---- Light Ion Engine Makeshift Power Source Wheel High-capacity Matter Pod (200) Improved Terrain Scanner Subdweller Beam Cannon Light Assault Rifle Peak State ------------ > --- POWER ------------ Light Ion Engine > --- PROPULSION ------- Wheel Wheel > --- UTILITY ---------- Small Storage Unit Seismic Detector > --- WEAPON ----------- Medium Laser Light Assault Rifle > --- INVENTORY -------- Light Ion Engine Compact Wheel Compact Wheel High-capacity Matter Pod Improved Terrain Scanner EM Pulse Gun Light Assault Rifle Mining Claw [Rating: 8] Favorites ----------- Power Light Ion Engine Engine Light Ion Engine Propulsion Wheel Wheel Wheel Utility Small Storage Unit Device Seismic Detector Storage Small Storage Unit Weapon EM Pulse Gun Energy Gun EM Pulse Gun Ballistic Gun Light Assault Rifle Slashing Weapon Mining Claw Build | -11 -10 -10 ------- Run | Yrd Mat Sub Slots Evolved . | . . . Power . | . . . Propulsion . | . . . Utility . | . . . Weapon . | . . . Parts Attached 16 | 8 7 1 Power 3 | 1 2 . Engine 3 | 1 2 . Core . | . . . Reactor . | . . . Propulsion 5 | 2 2 1 Treads . | . . . Leg . | . . . Wheel 5 | 2 2 1 Hover . | . . . Flight . | . . . Utility 3 | 3 . . Device 2 | 2 . . Storage 1 | 1 . . Processor . | . . . Hackware . | . . . Protection . | . . . Artifact . | . . . Weapon 5 | 2 3 . Energy Gun 2 | . 2 . Energy Cannon . | . . . Ballistic Gun 2 | 2 . . Ballistic Cannon . | . . . Launcher . | . . . Special Weapon . | . . . Impact Weapon . | . . . Slashing Weapon 1 | . 1 . Piercing Weapon . | . . . Special Melee Weapon . | . . . Unidentified Prototypes . | . . . Parts Lost 6 | . 2 4 Power 1 | . . 1 Propulsion 2 | . 1 1 Utility 1 | . . 1 Weapon 2 | . 1 1 Highest Loss Streak 3 | . 2 3 To Critical Strikes . | . . . Average Backups 6 | 1 6 6 Power 1 | . 1 1 Propulsion 1 | . 1 1 Utility 1 | . 1 2 Weapon 1 | . 2 1 Tool/Special . | . . . Unused Backups 6 | . . 6 Power 2 | . . 2 Propulsion 1 | . . 1 Utility 2 | . . 2 Weapon 1 | . . 1 Tool/Special . | . . . Average Slot Usage (%) 98 | . 99 97 Engine 13 | . 14 13 Wheel 27 | . 27 28 Device 13 | . 14 13 Storage 14 | . 14 14 Energy Gun 13 | . 13 12 Ballistic Gun 6 | . 13 . Slashing Weapon 7 | . 1 14 Peak Build Rating 8 | 7 8 8 Average Rating 7 | 5 7 7 On Entrance 4 | . 7 7 Avg Prop Armor Cover (%) . | . . . Naked Turns . | . . . Heaviest Build 13 | 11 13 13 Greatest Support 32 | 26 26 32 Greatest Overweight (x) 2 | 2 . . Average Overweight (x) . | . . . Largest Inventory Capacity 8 | 8 8 8 Average Capacity 7 | 7 8 8 Most Carried 8 | 4 8 8 Average Carried 6 | 1 6 6 Final Capacity 8 | 8 8 8 Final Carried 7 | 3 6 7 Class Distribution -------------------- 100% | Mutant Dominant Class ---------------- Mutant | -10/Materials Mutant | -10/Subcaves Resources | -11 -10 -10 ----------- Run | Yrd Mat Sub Matter Collected 646 | 300 226 120 Remotely . | . . . Salvage Created 489 | 152 337 . Parts 41 | 16 25 . Haulers Intercepted 2 | . 2 . Recyclers Shooed 1 | . 1 . Parts Field Recycled . | . . . Retrieved Matter . | . . . Parts Self-Destructed . | . . . Prevented . | . . . Parts Restored . | . . . Kills | -11 -10 -10 ------- Run | Yrd Mat Sub Combat Hostiles Destroyed 7 | . 7 . Guns 7 | . 7 . Classes Destroyed 6 | 2 4 . Tunneler 6 | 5 1 . Hauler 2 | . 2 . Recycler 1 | 1 . . Watcher 2 | . 2 . Swarmer 6 | . 6 . Grunt 1 | . 1 . Best Kill Streak 5 | 5 3 . Combat Bots Only 3 | . 3 . Max Kills in Single Turn 1 | 1 1 . Gunslinging . | . . . Exploded . | . . . Melee . | . . . Uniques/NPCs Destroyed . | . . . Combat | -11 -10 -10 -------- Run | Yrd Mat Sub Hostile Shots Fired 74 | . 52 22 Missed 17 | . 13 4 Hits 57 | . 39 18 Projectile 57 | . 39 18 Damage Taken 716 | . 337 379 Core 264 | . 82 182 Absorbed by Shields . | . . . Core Remaining (%) 100 | 100 . . Volleys Fired 52 | 14 38 . Largest 2 | 2 2 . Hottest 70 | 40 70 . Shots Fired 102 | 28 74 . Gun 102 | 28 74 . Cannon . | . . . Launcher . | . . . Special . | . . . Kinetic 66 | 28 38 . Thermal 29 | . 29 . Explosive . | . . . Electromagnetic 7 | . 7 . Robot Hit Streak 7 | 7 7 . Robot Miss Streak 6 | 2 6 . Penetration Max . | . . . Secondary Targets 2 | . 2 . Max Gunslinging Chain 1 | . 1 . Shots Hit Robots 49 | 19 30 . Core Hits 27 | 9 18 . Critical Kills . | . . . Critical Parts Destroyed 1 | 1 . . Critical Strikes 1 | 1 . . Destroy 1 | 1 . . Melee Attacks 29 | . 4 25 Impact . | . . . Slashing 29 | . 4 25 Piercing . | . . . Sneak Attacks . | . . . Combat Hostiles . | . . . Follow-up Attacks . | . . . Damage Inflicted 519 | 151 368 . Guns 495 | 151 344 . Cannons . | . . . Explosions . | . . . Melee 24 | . 24 . Ramming . | . . . Kinetic 273 | 151 122 . Thermal 164 | . 164 . Explosive . | . . . Electromagnetic 58 | . 58 . Impact . | . . . Slashing 24 | . 24 . Piercing . | . . . Highest Corruption . | . . . Average Corruption . | . . . Corruption Purged . | . . . Corruption Blocked . | . . . Overload Shots . | . . . Overflow Damage . | . . . Projectiles . | . . . Explosions . | . . . Melee . | . . . Knockbacks . | . . . Impact . | . . . Kinetic . | . . . Secondary . | . . . Self-Inflicted Damage . | . . . Shots . | . . . Rammed . | . . . Targets Rammed . | . . . Kicked . | . . . Crushed . | . . . Highest Temperature 140 | . 140 . Average Temperature 39 | . 39 . Received Heat Transfer 33 | . 27 6 Siege Activations . | . . . Martial Activations . | . . . Shielding Activations . | . . . Robots Disrupted . | . . . Combat Hostiles . | . . . Robots Corrupted . | . . . Combat Hostiles . | . . . Parts Fried . | . . . Impact Corruptions . | . . . Robots Melted . | . . . Combat Hostiles . | . . . Parts Melted 2 | . 2 . Heat Transferred 481 | . 481 . Parts Sabotaged . | . . . Parts Stolen . | . . . Parts Stripped . | . . . Power Chain Reactions . | . . . Alert | -11 -10 -10 ------- Run | Yrd Mat Sub Maximum Alert Level . | . . . Low Security (%) 100 | 100 100 . Level 1 . | . . . Level 2 . | . . . Level 3 . | . . . Level 4 . | . . . Level 5 . | . . . High Security . | . . . Max Security . | . . . Peak Influence 107 | 15 107 . Initial 6 | . 6 . Average 32 | 4 36 . Influence Increases 360 | 30 330 . Destroy 0b10 Robot/C 140 | . 140 . Destroy 0b10 Robot/NC 55 | 30 25 . Destroy Leader 28 | . 28 . Successful Hack 16 | . 16 . Disable Machine 15 | . 15 . Destroy Structure 1 | . 1 . Lose Combat Pursuer 105 | . 105 . Influence Decreases 360 | 20 249 91 Entered New Map 48 | . 4 44 Time Decay 292 | 20 225 47 Lost Part 20 | . 20 . Squads Dispatched . | . . . Investigation . | . . . Extermination . | . . . Reinforcement . | . . . Assault . | . . . Garrison . | . . . Intercept . | . . . Searches Triggered . | . . . Construction Impeded . | . . . Haulers Reinforced . | . . . Active Scanning Responses . | . . . Cargo Convoy Interrupts . | . . . Stealth | -11 -10 -10 --------- Run | Yrd Mat Sub Distress Signals 3 | . 3 . Communications Jammed . | . . . Distress Signals . | . . . Times Spotted 21 | . 17 4 Peak Tracking Total 4 | . 4 4 Tactical Retreats 4 | . 4 . Traps | -11 -10 -10 ------- Run | Yrd Mat Sub Traps Triggered 1 | . 1 . Indirectly . | . . . Trap Hack Attempts . | . . . Triggered . | . . . Disarmed . | . . . Reprogrammed . | . . . Reused . | . . . Traps Extracted . | . . . Installed . | . . . Triggered . | . . . Machines | -11 -10 -10 ---------- Run | Yrd Mat Sub Machines Disabled 1 | . 1 . Max in Single Turn 1 | . 1 . Machines Repaired . | . . . Machines Dismantled . | . . . Machines Sabotaged . | . . . Overloaded Fab Kills . | . . . Hacking | -11 -10 -10 --------- Run | Yrd Mat Sub Machines Accessed 10 | . 7 3 Terminals 6 | . 6 . Fabricators . | . . . Repair Stations . | . . . Recycling Units 1 | . 1 . Scanalyzers . | . . . Garrison Access . | . . . Total Hacks 22 | . 17 5 Successful 17 | . 12 5 Failed 5 | . 5 . Catastrophic 2 | . 2 . Database Lockouts . | . . . Manual 6 | . 6 . Terminals 16 | . 16 . Fabricators . | . . . Repair Stations . | . . . Recycling Units 1 | . 1 . Scanalyzers . | . . . Garrison Access . | . . . Terminal Hacks 13 | . 8 5 Record 3 | . . 3 Prototype ID Bank 2 | . 2 . Open Door 1 | . . 1 Emergency Access Points 4 | . 4 . Locate Traps 1 | . 1 . Dispatch Records 1 | . 1 . Release Object 1 | . . 1 Fabricator Hacks . | . . . Repair Station Hacks . | . . . Recycling Unit Hacks 1 | . 1 . Report Inventory 1 | . 1 . Scanalyzer . | . . . Garrison Access Hacks . | . . . Unauthorized Hacks 3 | . 3 . Terminals 3 | . 3 . Botnet 3 | . 3 . Fabricators . | . . . Repair Stations . | . . . Recycling Units . | . . . Scanalyzers . | . . . Garrison Access . | . . . Data Cores Recovered . | . . . Used . | . . . Hacking Detections 4 | . 4 . Full Trace Events . | . . . Feedback Events . | . . . Feedback Blocked . | . . . Robot Schematics Acquired . | . . . Robots Built . | . . . Authchips . | . . . Time . | . . . Total Robot Build Rating . | . . . Part Schematics Acquired . | . . . Parts Built . | . . . Authchips . | . . . Time . | . . . Total Part Build Rating . | . . . Part Studies Acquired . | . . . Parts Repaired . | . . . Time . | . . . Parts Recycled . | . . . Recycled Matter . | . . . Retrieved Matter . | . . . Retrieved Components . | . . . Parts Scanalyzed . | . . . Part Schematics Acquired . | . . . Parts Damaged . | . . . Bothacking | -11 -10 -10 ------------ Run | Yrd Mat Sub Used RIF Installer . | . . . Robots Hacked . | . . . Non-combat . | . . . Combat . | . . . Robot Hacks Applied . | . . . Relay Couplers Released . | . . . Fabnet Peak Effective % . | . . . Robots Rewired . | . . . Allies Hacked . | . . . Hacks Repelled . | . . . Allies | -11 -10 -10 -------- Run | Yrd Mat Sub Total Allies . | . . . Largest Group . | . . . Highest-Rated Group . | . . . Highest-Rated Ally . | . . . Total Orders . | . . . Ally Attacks . | . . . Total Damage . | . . . Kills . | . . . Allies Corrupted . | . . . Allies Melted . | . . . Intel | -11 -10 -10 ------- Run | Yrd Mat Sub Active Infowar (turns) 1455 | 37 694 724 Seismic 1455 | 37 694 724 Robot Analysis Total . | . . . Derelict Logs Recovered 1 | . . 1 Drone Launches . | . . . Drone Recoveries . | . . . Exploration | -11 -10 -10 ------------- Run | Yrd Mat Sub Turns Passed 1534 | 94 694 746 Spaces Moved 1328 | 49 626 653 Core 10 | 10 . . Treads . | . . . Legs . | . . . Wheels 1318 | 39 626 653 Hover . | . . . Flight . | . . . Fastest Speed 50 | 50 80 90 Average Speed 86 | 85 83 90 Slowest Speed 150 | 150 90 100 Overloaded Moves . | . . . Propulsion Burnouts . | . . . Robots Hopped . | . . . Potential Cave-ins . | . . . Cave-ins Triggered . | . . . Exploration Rate (%) 40 | 4 85 32 Regions Visited 2 Branch Regions 1 Pre-discovered Areas 1 | . . 1 Known Exits Taken . | . . . Unknown Exits Taken 2 | 1 1 . Scrap Searched 3 | . . 3 Spaces Dug 1 | . 1 . Terrain Destroyed 1 | . 1 . Melee 1 | . 1 . Projectile . | . . . AOE . | . . . Terrain Rammed . | . . . Walls Destroyed . | . . . Machines Disabled . | . . . Actions | -11 -10 -10 --------- Run | Yrd Mat Sub Total 1555 | 74 722 759 Wait 112 | . 34 78 Move 1326 | 48 625 653 Hop . | . . . Pick Up 11 | 3 6 2 Fast Attach 9 | 7 2 . Attach 3 | . 2 1 Detach . | . . . Swap 8 | 1 7 . Drop 5 | 1 4 . Fire 52 | 14 38 . Melee 29 | . 4 25 Ram . | . . . Kick . | . . . Crush . | . . . Escape Stasis . | . . . Rewire . | . . . Trap . | . . . Miscellaneous . | . . . Route ------- -11/Scrapyard -10/Materials (discovered 4 exits: [*Mat x2] / [*Min] / *Sub) -10/Subcaves (discovered 2 exits: [*Mat x2]) History --------- Turn | Location | Event 15 | -11/Scrapyard | Discovered new exit (range 16) 95 | -11/Scrapyard | Entered Materials 152 | -10/Materials | Discovered new exit (range 14) 248 | -10/Materials | Discovered new exit (range 13) 308 | -10/Materials | Build established: Mutant 593 | -10/Materials | Discovered new exit (range 4) 595 | -10/Materials | Derelicts attacked the area 782 | -10/Materials | Discovered new exit (range 8) 789 | -10/Materials | Entered Subcaves 789 | -10/Subcaves | Discovered new exit (range 8) 914 | -10/Subcaves | Visited Clippyterm 917 | -10/Subcaves | Learned Research machine intel 1070 | -10/Subcaves | Discovered new exit (range 10) 1380 | -10/Subcaves | Learned location of Mines (-10) 1472 | -10/Subcaves | Core integrity fell below 50% 1479 | -10/Subcaves | Shifting Twisted Machinery released Battle Rifle 1519 | -10/Subcaves | Core integrity fell below 20% 1535 | -10/Subcaves | Destroyed by 8O-8WH(R) with Subdweller Machine Gun Last Messages --------------- World map updated: -10/Mines. Searching scrap... Found Shrapnel Trap. Found 42 Matter. Searching scrap... Found Mak. Power Source. Found 63 Matter. Acquired Mak. Power Source. Searching scrap... Found Sub. Beam Cannon. Found 57 Matter. Acquired Sub. Beam Cannon. EM Pulse Gun destroyed. Battle Rifle falls loose from the Twisted Machinery. BA-IPK(z): "She is not going to be happy we haven't found any suitable candidates yet." Lgt. Ion Engine destroyed. Wheel destroyed. Seismic Detector destroyed. Map ----- +----------------------------------------------------+ | ?#" ##??????????????????????????????# ## ##???? | | ##" ##??????????????????????????????# #????? | | # """#??########????????????????????# #????? | | ##" "#??#""""""#???????????????????## #????? | | ?#" #??#""""X"#???????????????????# ##???? | | ## #??# & "#???????????????????# ##??# | | #" ##??# "#???????????????????# ## # | | " #???#" """"#???????????????????## ## | | " ##??## #####????????????????????# ### | | ##?#" ""#??????????????????????# ## #### | | #?#X ##?????????????????????# ##??? | | #### ##???????????????????###" ###???? | | # ## #### #####?????????????## ?## ##?????? | | ## ### ## ## ""#????????????## ?## "##??????? | | # ## ###"""#????????????## #?# "#???????? | | # ""##???????????# ### ""#???????? | | ## "" ##???????????# ## ##???????? | | """ #??###???#### # #???????? | | ## " #### ##### ##???????? | | ?### #### " " ##???####? | | #### ##?# "" "" ## ##?# ## | | # ##?## ""#"# # ### ## | | ####??# "####### ##"" """ | | # ### ##?????# #####??### ###"""""[ " | | ### #### ##?????# R## ## ## #?####""##"" | | ?# ##?# #?????## R @ #????##"#??""" | | ## #??# ##??????#" "" #?????#"#???"" | | ##?## ##??????#"R#### ### # ##?????#"#????? | | ### "#?????# ???##?### ##??????###????? | | ### "##?????# ??????? ??????????????? | | ###""#??????# ?????? ??????????????? | | # ##" #??????## ?????? # ?????????????? | | # ### #???????## ?????#?# ?????????????? | | ### ????????# ?????????????????????? | | #?### ????????? #????????????????????? | | #????# ## ??????? ? ##????????????????????? | | ##?????###?" ?????# # ?#?????????????????????? | | #???????????"""? ??????# ???????????????????????? | | ????????????" ?????????#????????????????????????? | | ?????????????????????????????????????????????????? | | ?????????????????????????????????????????????????? | | ?????????????????????????????????????????????????? | | ?????????????????????????????????????????????????? | | ?????????????????????????????????????????????????? | | ?????????????????????????????????????????????????? | | ?????????????????????????????????????????????????? | | ?????????????????????????????????????????????????? | | ?????????????????????????????????????????????????? | | ?????????????????????????????????????????????????? | | ?????????????????????????????????????????????????? | +----------------------------------------------------+ Best States ------------- Heat Dissipation 25 Energy Generation 10 Energy Capacity 125 Matter Stores 300 Matter Capacity 300 Sight Range 16 Terrain Scan Density 10 Evasion (%) 44 Item Schematics ----------------- None Robot Schematics ------------------ None Fabricated ------------ Nothing Repaired ---------- Nothing Studied --------- None Alien Tech Used ----------------- None Achievements -------------- None Challenges ------------ None Game ------ Seed GreatPartitionGuard Manual? 0 Play Time 00:23:24 Cumulative 52.4 hours Start 2026.05.03 @ 16:47:28 End 2026.05.03 @ 17:40:14 Sessions 1 Manual Loads 0 Difficulty Rogue Special Mode None Game No. 41 Rogue 7 Adventurer 34 Explorer 0 Win Type - Total 0 Types 0/0/0/0/0/0/0/0/0/0 Lore% 30 Gallery% 26 Achievement% 24 Wizard Run 0 Options --------- Layout 1 ASCII 0 Keyboard 1 Movement Numpad Keybinds 0 Fullscreen 1 Font 24/Smallcaps Map View 50x40 Zoom Use 19% Tactical HUD 0 Map Filters NONE Filters NONE Steam 1 RUN: 4d90d89c-7078-4eda-8625-fb680a204b4d